bitfinex/quotes_ETHUSD_20220109
["timestamp","ask_amount","ask_price","bid_price","bid_amount"]
[1641766415754,0.00341054,3192.6,3192.3,1.5658]
[1641766416401,0.00341054,3192.6,3192.4,0.7829]
[1641766417198,2.67044103,3192.6,3192.4,0.7829]
[1641766417797,0.00341054,3192.6,3192.4,0.7829]
[1641766419003,2.67037422,3192.6,3192.4,0.7829]
[1641766419602,0.00341054,3192.6,3192.4,0.7829]
[1641766420250,0.00341054,3192.6,3192.5,1.93591285]
[1641766420550,0.00341054,3192.6,3192.4,0.7829]
[1641766420949,0.00284212,3192.5,3192.4,0.7829]
[1641766421749,0.00284212,3192.5,3192.4,1.0829]
[1641766421950,0.00284212,3192.5,3192.4,1.7829]
[1641766422351,0.00284212,3192.5,3192.4,0.7829]
[1641766422951,0.00284212,3192.5,3192.4,2.96912223]
[1641766423152,0.00284212,3192.5,3192.4,4.26912223]
[1641766425097,0.00284212,3192.5,3192.4,7.60578918]
[1641766425299,0.00284212,3192.5,3192.4,7.64811981]
[1641766429751,0.00284212,3192.5,3192.4,7.61264781]
[1641766432408,0.00284212,3192.5,3192.4,4.36264781]
[1641766434411,0.00284212,3192.5,3192.4,1.86317422]
[1641766434611,0.00284212,3192.5,3192.4,0.86317422]
[1641766434867,0.00284212,3192.5,3192.4,0.7829]
[1641766438069,0.00284212,3192.5,3192.3,1.56598]
[1641766438269,0.78590212,3192.5,3192.3,1.56598]
[1641766438471,0.00227369,3192.4,3192.3,1.56598]
[1641766439305,0.00227369,3192.4,3192.3,1.55884189]
[1641766441505,0.00227369,3192.4,3192.3,1.54813831]
[1641766441711,0.00227369,3192.4,3192.3,3.42857168]
[1641766442355,0.00227369,3192.4,3192.3,1.54813831]
[1641766443958,0.00227369,3192.4,3192.3,3.44073406]
[1641766444359,0.00227369,3192.4,3192.3,4.44073406]
[1641766444758,0.00227369,3192.4,3192.3,3.44073406]
[1641766444959,0.00227369,3192.4,3192.3,4.45448176]
[1641766445558,0.00227369,3192.4,3192.3,2.54813831]
[1641766445758,0.00227369,3192.4,3192.3,1.54813831]
[1641766447798,0.00227369,3192.4,3192.2,0.78297]
[1641766448205,0.00170527,3192.3,3192.2,0.78297]
[1641766454498,0.00170527,3192.3,3191.4,4.9942]
[1641766454499,0.00170527,3192.3,3191.9,0.78317]
[1641766454899,0.00113685,3192.2,3191.9,0.78317]
[1641766455999,1.07658626,3192.2,3191.9,0.78317]
[1641766456499,0.00113685,3192.2,3191.9,0.78317]
[1641766459650,0.00113685,3192.2,3192.0,1.93593491]
[1641766459851,0.00113685,3192.2,3192.1,0.78298]
[1641766460051,0.00113685,3192.2,3192.1,2.82075936]
[1641766460248,0.00113685,3192.2,3192.1,3.82075936]
[1641766460450,0.00113685,3192.2,3192.1,2.82075936]
[1641766460852,0.00113685,3192.2,3192.1,2.67943937]
[1641766461107,0.00113685,3192.2,3192.1,0.78298]
[1641766461304,0.00113685,3192.2,3192.1,2.70783671]
[1641766461906,0.00113685,3192.2,3192.1,0.78298]
[1641766462105,0.00113685,3192.2,3192.1,2.68435976]
[1641766462805,0.00113685,3192.2,3192.1,3.68435976]
[1641766463507,0.00113685,3192.2,3192.1,3.6716687]
[1641766463717,0.00113685,3192.2,3192.1,1.78298]
[1641766464109,0.00113685,3192.2,3192.1,0.78298]
[1641766464308,0.00113685,3192.2,3192.1,1.78298]
[1641766464508,0.00113685,3192.2,3192.1,0.78298]
[1641766468354,0.00113685,3192.2,3192.0,1.56596]
[1641766469799,0.00113685,3192.2,3192.1,0.78298]
[1641766478405,0.00113685,3192.2,3192.1,2.6826412]
[1641766479002,0.00113685,3192.2,3192.1,0.78298]
[1641766480558,0.00113685,3192.2,3192.1,2.78822024]
[1641766480959,0.00113685,3192.2,3192.1,0.78298]
[1641766481159,0.00113685,3192.2,3192.1,2.68911428]
[1641766481355,0.00113685,3192.2,3192.1,2.6966726]
[1641766481556,0.00113685,3192.2,3192.1,0.78298]
[1641766482555,0.00113685,3192.2,3192.1,2.7145181]
[1641766484206,0.00113685,3192.2,3192.1,0.78298]
[1641766485004,0.00113685,3192.2,3192.1,2.38298]
[1641766485807,0.00113685,3192.2,3192.1,4.30170999]
[1641766487754,0.00113685,3192.2,3192.1,2.38298]
[1641766488054,0.00113685,3192.2,3192.1,2.75118]
[1641766488254,0.00113685,3192.2,3192.1,7.20118]
[1641766489856,0.00113685,3192.2,3192.1,9.34172005]
[1641766490056,2.66708719,3193.0,3192.2,5.45]
[1641766490256,2.66708719,3193.0,3192.6,0.78281]
[1641766490459,0.00397896,3192.9,3192.6,0.78281]
[1641766490659,0.00397896,3192.9,3192.6,2.38281]
[1641766490858,0.00341054,3192.8,3192.6,2.38281]
[1641766491104,0.00341054,3192.8,3192.7,4.3156514]
[1641766491308,2.66708719,3193.0,3192.7,3.53283]
[1641766491706,0.00397896,3192.9,3192.8,1.0]
[1641766491906,0.00397896,3192.9,3192.8,1.3]
[1641766492106,0.00397896,3192.9,3192.8,1.6]
[1641766492411,0.00397896,3192.9,3192.8,9.23276]
[1641766492412,2.67106615,3192.9,3192.8,9.23276]
[1641766493306,0.00397896,3192.9,3192.8,2.38276]
[1641766493707,0.00397896,3192.9,3192.8,4.61275658]
[1641766494107,0.00105551,3193.4,3192.8,4.61275658]
[1641766494308,0.00105551,3193.4,3193.1,1.5652363]
[1641766494508,0.0022737,3193.3,3193.1,1.5652363]
[1641766494706,0.0022737,3193.3,3193.2,0.6]
[1641766494959,0.00105551,3193.4,3193.2,0.6]
[1641766495159,0.00105551,3193.4,3193.2,0.3]
[1641766495355,0.00105551,3193.4,3193.2,1.5651401]
[1641766495555,0.00105551,3193.4,3193.2,3.3477601]
[1641766496357,2.66586601,3194.0,3193.5,1.56507]
[1641766496562,2.66586601,3194.0,3193.6,1.98369008]
[1641766496757,2.67211867,3194.0,3193.6,1.98369008]
[1641766496955,2.67211867,3194.0,3193.6,2.98369008]
[1641766497357,0.00625266,3194.0,3193.7,0.782533]
[1641766497560,0.00625266,3194.0,3193.8,2.55783625]
[1641766497756,0.00625266,3194.0,3193.9,2.34733]
[1641766499814,0.00625266,3194.0,3193.9,2.64733]
[1641766500011,0.00625266,3194.0,3193.9,3.34733]
[1641766501614,0.00625266,3194.0,3193.9,3.94733]
[1641766501814,0.00625266,3194.0,3193.9,3.34733]
[1641766503757,0.00625266,3194.0,3193.9,1.0]
[1641766504154,0.00625266,3194.0,3193.8,1.08247]
[1641766504555,0.00568424,3193.9,3193.7,1.0]
[1641766504754,0.00568424,3193.9,3193.6,1.86531]
[1641766504953,0.00511581,3193.8,3193.6,1.86531]
[1641766505162,0.00511581,3193.8,3193.7,0.78264]
[1641766505360,1.31230277,3194.4,3193.7,0.78264]
[1641766505555,1.31230277,3194.4,3193.7,1.78264]
[1641766505757,0.00795793,3194.3,3193.7,1.78264]
[1641766506216,0.00738951,3194.2,3193.7,1.78264]
[1641766506614,0.00682108,3194.1,3193.7,1.78264]
[1641766507013,0.00625266,3194.0,3193.7,1.78264]
[1641766507514,2.09495277,3194.4,3193.7,1.78264]
[1641766507515,0.00568424,3193.9,3193.7,1.78264]
[1641766507918,0.00511581,3193.8,3193.7,1.78264]
[1641766509959,0.00511581,3193.8,3193.7,0.78264]
[1641766510655,0.00511581,3193.8,3193.3,1.56547]
[1641766511057,0.00454739,3193.7,3193.3,1.56547]
[1641766511258,1.40369706,3193.6,3193.5,0.7827]
[1641766511458,1.40767603,3193.6,3193.5,0.7827]
[1641766511656,1.00611377,3193.9,3193.7,1.69232397]
[1641766511958,1.00781904,3193.9,3193.7,1.69232397]
[1641766512560,1.00781904,3193.9,3193.7,2.47503397]
[1641766514505,0.13419226,3193.8,3193.7,2.47503397]
[1641766515909,0.13419226,3193.8,3193.7,1.69232397]
[1641766518161,0.13419226,3193.8,3193.7,2.99232397]
[1641766518364,0.00170527,3193.9,3193.7,5.57742397]
[1641766518562,0.00170527,3193.9,3193.8,0.78241]
[1641766518961,0.00105551,3194.3,3193.8,1.08241]
[1641766519162,0.00105551,3194.3,3193.8,1.3]
[1641766519362,1.15669358,3195.1,3193.8,1.3]
[1641766519663,1.15669358,3195.1,3194.5,0.7823]
[1641766519664,0.00341054,3194.8,3194.5,0.7823]
[1641766519863,0.00341054,3194.8,3194.5,1.7944]
[1641766520063,0.00284211,3194.7,3194.5,2.7944]
[1641766520464,0.00227369,3194.6,3194.5,2.7944]
[1641766520664,0.00227369,3194.6,3194.5,3.3123]
[1641766520871,0.00227369,3194.6,3194.5,4.8767878]
[1641766523409,0.00227369,3194.6,3194.5,3.8767878]
[1641766523606,0.00227369,3194.6,3194.5,4.8767878]
[1641766524108,3.606,3195.5,3194.7,1.5644077]
[1641766524308,3.606,3195.5,3195.0,0.78222]
[1641766524511,0.00341054,3195.2,3195.0,0.78222]
[1641766524957,0.00284212,3195.1,3195.0,0.78222]
[1641766527361,0.00284212,3195.1,3195.0,3.88222]
[1641766527962,0.00284212,3195.1,3195.0,4.88222]
[1641766529916,0.00284212,3195.1,3195.0,3.88222]
[1641766530116,0.00284212,3195.1,3195.0,4.88222]
[1641766531319,0.91848522,3195.3,3195.0,4.88222]
[1641766531919,0.91848522,3195.3,3195.2,0.78235]
[1641766532364,0.91962206,3195.3,3195.2,0.78235]
[1641766532558,0.91962206,3195.3,3195.2,0.77165985]
[1641766532758,0.91962206,3195.3,3195.0,3.1]
[1641766533859,0.91962206,3195.3,3195.2,0.78235]
[1641766534061,0.91962206,3195.3,3195.0,3.1]
[1641766534960,0.91962206,3195.3,3195.0,3.88238]
[1641766543813,1.44294506,3195.3,3195.0,3.88238]
[1641766547110,1.39294506,3195.3,3195.0,3.88238]
[1641766548561,1.34294506,3195.3,3195.0,3.88238]
[1641766549863,0.078265,3195.2,3195.0,3.88238]
[1641766550667,1.18253924,3195.6,3195.2,0.0268239]
[1641766550865,1.18253924,3195.6,3195.1,1.83167294]
[1641766551111,1.18253924,3195.6,3195.1,0.00113684]
[1641766551112,2.33519981,3195.5,3195.1,0.00113684]
[1641766551316,2.37020712,3195.5,3195.1,0.00113684]
[1641766551615,0.7824,3195.4,3195.1,0.00113684]
[1641766552012,3.44730986,3195.4,3195.1,0.00113684]
[1641766552810,3.44730986,3195.4,3195.2,1.5647084]
[1641766553110,2.66490986,3195.3,3195.2,1.5647084]
[1641766553312,2.66490986,3195.3,3195.2,1.56129788]
[1641766553712,2.66490986,3195.3,3195.2,1.86129788]
[1641766556768,2.66490986,3195.3,3195.2,0.3]
[1641766557164,2.66490986,3195.3,3195.1,0.00113684]
[1641766557364,2.10327841,3195.2,3195.1,0.00113684]
[1641766557765,20.40327841,3195.2,3195.1,0.00113684]
[1641766559023,23.06818827,3195.2,3195.1,0.00113684]
[1641766559224,4.76818827,3195.2,3195.1,0.00113684]
[1641766559623,20.96490986,3195.2,3195.1,0.00113684]
[1641766560424,24.962485,3195.2,3195.1,0.00113684]
[1641766561424,24.962485,3195.2,3195.1,0.30113684]
[1641766562227,6.662485,3195.2,3195.1,0.30113684]
[1641766562464,7.81917858,3195.2,3195.1,0.30113684]
[1641766563064,2.61490986,3195.2,3195.1,0.30113684]
[1641766565165,3.77160344,3195.2,3195.1,0.30113684]
[1641766566208,2.61490986,3195.2,3195.1,0.30113684]
[1641766569110,2.56490986,3195.2,3195.1,0.30113684]
[1641766571560,2.51490986,3195.2,3195.1,0.30113684]
[1641766574219,2.51490986,3195.2,3195.0,3.28024133]
[1641766576316,2.51490986,3195.2,3195.0,3.58024133]
[1641766578365,2.51490986,3195.2,3195.0,4.36266133]
[1641766579564,2.51490986,3195.2,3195.0,3.58024133]
[1641766586863,3.67160344,3195.2,3195.0,3.58024133]
[1641766591113,1.15669358,3195.1,3195.0,3.58024133]
[1641766591412,1.15669358,3195.1,3195.0,1.98127678]
[1641766591614,2.46533008,3195.1,3195.0,1.98127678]
[1641766592215,3.82354636,3195.1,3195.0,1.98127678]
[1641766592667,3.82354636,3195.1,3195.0,2.76379178]
[1641766592869,3.67160344,3195.1,3195.0,2.76379178]
[1641766593069,3.67160344,3195.1,3195.0,3.06379178]
[1641766593868,2.51490986,3195.1,3195.0,3.06379178]
[1641766594069,3.67160344,3195.2,3195.1,0.3]
[1641766595271,3.67160344,3195.2,3195.0,1.00376913]
[1641766595877,2.51490986,3195.3,3195.0,1.00376913]
[1641766596109,2.51490986,3195.3,3195.1,0.7823613]
[1641766596313,2.5160467,3195.3,3195.2,0.78237]
[1641766597311,2.5160467,3195.3,3195.2,1.08237]
[1641766598914,3.67274028,3195.3,3195.2,1.08237]
[1641766599514,2.5160467,3195.3,3195.2,1.08237]
[1641766601763,0.00113684,3195.3,3195.2,1.08237]
[1641766602464,2.5160467,3195.3,3195.2,1.08237]
[1641766603063,0.00113684,3195.3,3195.2,1.08237]
[1641766615363,0.00113684,3195.3,3195.0,1.78607173]
[1641766616162,0.00113684,3195.3,3195.2,0.78237]
[1641766616566,2.5160467,3195.3,3195.2,0.78237]
[1641766617163,2.5160467,3195.3,3195.2,1.08237]
[1641766618825,2.5160467,3195.3,3195.1,1.5647513]
[1641766619025,3.2984367,3195.3,3195.1,0.7823613]
[1641766619626,2.51490986,3195.2,3195.1,0.7823613]
[1641766620027,2.51490986,3195.2,3195.1,1.0823613]
[1641766620227,2.51490986,3195.2,3195.1,1.8647513]
[1641766620830,2.51490986,3195.2,3195.1,1.85761543]
[1641766623069,2.51490986,3195.2,3195.1,1.84691521]
[1641766623267,2.51490986,3195.2,3195.1,1.06452521]
[1641766631965,2.51490986,3195.2,3195.0,1.03828802]
[1641766632168,2.51490986,3195.2,3195.0,2.03828802]
[1641766633263,2.51490986,3195.2,3195.0,2.33828802]
[1641766633465,0.78234,3195.4,3195.0,2.33828802]
[1641766633718,0.78234,3195.4,3195.2,0.78233]
[1641766634114,2.51490986,3195.3,3195.2,1.08233]
[1641766636116,1.15669358,3195.5,3195.3,1.5645721]
[1641766636516,0.00170527,3195.4,3195.3,1.5645721]
[1641766636718,0.00170527,3195.4,3195.3,0.78229]
[1641766646466,0.00170527,3195.4,3195.2,1.5645642]
[1641766646868,0.00113684,3195.3,3195.2,1.5645642]
[1641766648470,0.00113684,3195.3,3195.2,2.3469442]
[1641766650120,0.00113684,3195.3,3195.2,0.78238]
[1641766650324,0.00113684,3195.3,3195.2,1.78238]
[1641766653577,3.821906,3195.9,3195.2,1.78238]
[1641766653777,1.15772573,3195.9,3195.2,1.78238]
[1641766653978,0.00284212,3195.8,3195.2,1.78238]
[1641766654378,0.0022737,3195.7,3195.2,1.78238]
[1641766654576,0.0022737,3195.7,3195.5,0.78207]
[1641766654778,0.00170527,3195.6,3195.5,0.78207]
[1641766655580,0.00170527,3195.6,3195.5,1.5641425]
[1641766658327,1.10839885,3196.0,3195.5,1.5641425]
[1641766658627,2.66588555,3195.9,3195.7,1.5642381]
[1641766659027,0.00113685,3195.8,3195.7,1.5642381]
[1641766659228,0.00113685,3195.8,3195.3,4.6924466]
[1641766659631,0.00113685,3195.8,3195.4,0.00113684]
[1641766659877,2.66531712,3195.8,3195.4,0.00113684]
[1641766660367,0.00113685,3195.8,3195.6,1.5642362]
[1641766660770,2.66418027,3195.7,3195.6,1.5642362]
[1641766661368,0.00113685,3195.8,3195.6,1.5642362]
[1641766661568,0.00113685,3195.8,3195.7,0.7821165]
[1641766670068,0.00113685,3195.8,3195.7,0.7466365]
[1641766670871,0.00113685,3195.8,3195.4,0.78344684]
[1641766671119,0.00113685,3195.8,3195.7,2.31773]
[1641766672818,0.00113685,3195.8,3195.7,3.0999908]
[1641766673221,2.61531712,3195.9,3195.7,1.50153085]
[1641766673421,1.97798971,3196.0,3195.7,1.50153085]
[1641766673821,1.97798971,3196.0,3195.7,2.28378085]
[1641766674882,1.97798971,3196.0,3195.7,3.06604165]
[1641766675173,1.97798971,3196.0,3195.7,2.28378085]
[1641766675968,4.09019732,3196.0,3195.7,2.28378085]
[1641766676173,1.97798971,3196.0,3195.7,2.28378085]
[1641766676773,2.05691909,3195.9,3195.7,2.28378085]
[1641766677070,2.05691909,3195.9,3195.7,1.50153085]
[1641766678069,2.34851369,3196.0,3195.7,1.80153085]
[1641766678270,2.34851369,3196.0,3195.7,1.50153085]
[1641766679116,1.19650437,3195.8,3195.7,1.50153085]
[1641766679317,1.19650437,3195.8,3195.0,3.2397]
[1641766679516,0.78232,3195.6,3195.0,3.5397]
[1641766679717,1.24424126,3195.5,3195.1,0.00284212]
[1641766680117,1.24424126,3195.5,3195.2,0.78233]
[1641766680517,1.24424126,3195.5,3195.3,0.00170528]
[1641766680718,1.24424126,3195.5,3195.3,0.78402368]
[1641766681120,1.24424126,3195.5,3195.4,0.30113685]
[1641766682120,1.24424126,3195.5,3195.4,3.40113685]
[1641766683374,1.24424126,3195.5,3195.4,0.30113685]
[1641766686424,0.78228,3195.7,3195.5,0.78227]
[1641766686628,0.00113684,3195.8,3195.5,0.78227]
[1641766687433,0.00113684,3195.8,3195.4,0.30113685]
[1641766687628,2.24763853,3195.7,3195.4,0.78345685]
[1641766687831,1.46536853,3195.7,3195.4,0.78345685]
[1641766688029,1.46536853,3195.7,3195.4,0.30113685]
[1641766688429,1.46536853,3195.7,3195.4,0.00113685]
[1641766688830,2.24767853,3195.7,3195.3,1.5645203]
[1641766689029,1.46536853,3195.7,3195.5,0.78228]
[1641766689234,1.46536853,3195.7,3195.4,0.00113685]
[1641766690067,0.00113684,3195.8,3195.5,1.5644606]
[1641766690469,0.00113684,3195.8,3195.6,0.3]
[1641766691068,0.00113684,3195.8,3195.6,1.8643713]
[1641766691668,0.00113684,3195.8,3195.6,3.8533713]
[1641766691874,1.19650437,3195.9,3195.7,2.19633034]
[1641766692069,1.19650437,3195.9,3195.7,3.3460686]
[1641766692269,1.19650437,3195.9,3195.7,4.1280086]
[1641766692469,0.94180437,3195.9,3195.7,4.1280086]
[1641766692668,0.94180437,3196.3,3195.7,4.1280086]
[1641766692870,0.94180437,3196.3,3195.9,1.56382]
[1641766693068,0.00170527,3196.1,3195.9,1.86382]
[1641766693270,0.00170527,3196.1,3195.9,3.4276362]
[1641766693469,0.00113685,3196.0,3195.9,3.4276362]
[1641766702221,0.00113685,3196.0,3195.9,6.5276362]
[1641766705967,0.00113685,3196.0,3195.9,8.71160667]
[1641766706168,0.00113685,3196.0,3195.9,6.5276362]
[1641766708468,0.734149,3196.7,3196.2,0.78198]
[1641766708923,0.00227369,3196.4,3196.2,1.08198]
[1641766709218,0.00170527,3196.3,3196.2,1.08198]
[1641766711320,0.73371527,3196.5,3196.2,1.08198]
[1641766711921,2.66363237,3196.4,3196.2,1.08198]
[1641766713571,2.66363237,3196.4,3196.2,1e-08]
[1641766713772,2.66363237,3196.4,3196.2,0.78206791]
[1641766714872,2.66363237,3196.4,3196.2,1.56404791]
[1641766715272,2.66363237,3196.4,3196.2,1e-08]
[1641766715474,2.03915648,3196.3,3196.2,1e-08]
[1641766715673,0.78219,3196.1,3195.9,3.1]
[1641766716128,0.78219,3196.1,3196.0,0.00170527]
[1641766716321,2.1004972,3196.1,3196.0,0.00170527]
[1641766717120,4.76412957,3196.1,3196.0,0.00170527]
[1641766717524,3.44582237,3196.1,3196.0,0.00170527]
[1641766721069,2.66363237,3196.1,3196.0,0.00170527]
[1641766722268,2.66533764,3196.6,3196.0,0.00170527]
[1641766722467,2.66533764,3196.6,3196.3,0.78201]
[1641766722668,0.78315685,3196.5,3196.3,1.08201]
[1641766723722,2.66363237,3196.4,3196.3,1.08201]
[1641766724420,3.44572237,3196.4,3196.2,0.7820521]
[1641766724621,3.44572237,3196.4,3196.1,1.86402]
[1641766724822,3.44572237,3196.4,3196.1,0.3]
[1641766725020,3.44572237,3196.4,3196.0,0.30170527]
[1641766725223,1.56433,3196.3,3196.0,0.00170527]
[1641766725431,1.56433,3196.3,3196.1,0.00113685]
[1641766725622,4.22796237,3196.3,3196.0,0.00170527]
[1641766726825,2.66363237,3196.2,3196.0,0.00170527]
[1641766727027,2.66363237,3196.2,3196.1,0.78209]
[1641766727387,2.66363237,3196.2,3196.1,1.08322685]
[1641766728784,2.66363237,3196.3,3196.1,1.08322685]
[1641766728985,2.66363237,3196.3,3196.1,1.86526085]
[1641766729486,2.66363237,3196.2,3196.1,1.86526085]
[1641766730687,2.66363237,3196.3,3196.1,1.86526085]
[1641766731720,2.66363237,3196.3,3196.1,0.30113685]
[1641766732520,2.66363237,3196.3,3196.1,1.08322685]
[1641766732920,2.66363237,3196.3,3196.1,1.86530755]
[1641766735379,2.66363237,3196.3,3196.1,1.08322685]
[1641766736372,2.66363237,3196.3,3196.1,0.30113685]
[1641766737775,2.66363237,3196.3,3196.1,1.86530405]
[1641766738828,2.61363237,3196.3,3196.1,1.86530405]
[1641766739227,0.78203,3196.4,3196.1,1.86530405]
[1641766739426,0.78203,3196.4,3196.1,0.30113685]
[1641766740832,1.5642,3196.4,3196.1,0.00113685]
[1641766741033,2.09625208,3196.3,3196.1,0.00113685]
[1641766741331,2.87854208,3196.3,3196.0,0.00170527]
[1641766742030,21.96086208,3196.3,3196.0,0.00170527]
[1641766742230,23.15478117,3196.3,3196.0,0.00170527]
[1641766742510,23.15478117,3196.3,3195.9,3.4]
[1641766742511,0.78231,3196.2,3195.9,3.1]
[1641766742708,2.91361818,3196.1,3195.9,3.1]
[1641766742912,2.04965797,3196.0,3195.9,3.1]
[1641766743110,20.34965797,3196.0,3195.9,3.1]
[1641766743312,18.3,3196.0,3195.9,3.1]
[1641766743515,1.08236,3196.1,3195.9,3.1]
[1641766743717,2.07768793,3196.0,3195.9,3.1]
[1641766744013,3.07768793,3196.0,3194.6,0.46812371]
[1641766744213,2.09105,3195.4,3194.6,0.46812371]
[1641766744413,2.36742,3195.4,3194.7,0.00738951]
[1641766744616,1.41622628,3195.0,3194.7,0.78983951]
[1641766744814,1.41622628,3195.0,3194.7,0.00738951]
[1641766745016,1.41622628,3195.0,3194.8,0.00682108]
[1641766745215,2.98119628,3195.0,3194.8,0.00682108]
[1641766745415,1.55810932,3194.9,3194.8,0.00682108]
[1641766746331,2.79104,3195.3,3194.8,0.00682108]
[1641766746528,1.2263,3195.3,3194.8,0.00682108]
[1641766747430,0.00102067,3195.4,3194.8,0.78915108]
[1641766747628,0.00102067,3195.4,3194.8,1.78915108]
[1641766747829,0.00102067,3195.4,3195.0,0.7823421]
[1641766748029,0.00102067,3195.4,3195.0,1.86456]
[1641766748229,2.7539,3195.7,3195.1,0.00511581]
[1641766748430,2.7539,3195.7,3195.3,0.78223]
[1641766748632,1.5646,3195.7,3195.3,0.78223]
[1641766748833,2.02080254,3195.6,3195.4,0.00341054]
[1641766749229,0.78222,3195.6,3195.4,0.00341054]
[1641766750873,0.78222,3195.6,3195.4,0.30341054]
[1641766751073,0.78222,3195.6,3195.3,0.3]
[1641766751274,1.5646,3195.7,3195.5,0.00284212]
[1641766751478,1.5146,3195.7,3195.4,0.78569054]
[1641766751675,1.5146,3195.7,3195.4,1.08569054]
[1641766751881,1.5146,3195.7,3195.5,0.00284212]
[1641766752078,1.5146,3195.7,3195.5,0.30284212]
[1641766752481,1.5146,3195.7,3195.6,0.0022737]
[1641766754126,1.5146,3195.7,3195.4,0.26827689]
[1641766754723,1.5146,3195.7,3195.5,0.78224]
[1641766755725,0.78221,3195.7,3195.5,0.78224]
[1641766756127,0.78221,3195.7,3195.5,1.08224]
[1641766759181,0.78221,3195.7,3195.3,1.86444]
[1641766759385,3.44649681,3195.6,3195.3,1.86444]
[1641766759581,3.44649681,3195.6,3195.4,0.00113684]
[1641766760382,2.66417681,3195.5,3195.4,0.00113684]
[1641766763432,2.66417681,3195.5,3195.4,2.57233287]
[1641766764034,1.1957041,3196.0,3195.4,3.57233287]
[1641766764233,2.75358,3196.1,3195.5,1.0]
[1641766764438,0.00170528,3195.9,3195.6,1.77779731]
[1641766764734,0.00113685,3195.8,3195.7,0.78212]
[1641766764978,0.00113685,3195.8,3195.7,1.5642206]
[1641766765284,0.00113685,3195.8,3195.7,1.8642206]
[1641766766177,0.00113685,3195.8,3195.7,3.63213483]
[1641766766379,0.00113685,3195.8,3195.7,1.8642206]
[1641766767380,0.00113685,3195.8,3195.7,1.08212]
[1641766767580,0.00113685,3195.8,3195.7,1.8643053]
[1641766772389,2.66500345,3195.8,3195.7,3.58105657]
[1641766772585,2.66500345,3195.8,3195.7,4.58105657]
[1641766772784,2.66500345,3195.8,3195.7,4.66133079]
[1641766772986,2.66500345,3195.8,3195.7,3.24457952]
[1641766773188,0.00113685,3195.8,3195.7,3.24457952]
[1641766775388,0.00113685,3195.8,3195.7,6.2643053]
[1641766784127,0.00113685,3195.8,3195.7,4.9643053]
[1641766784327,0.00113685,3195.8,3195.7,5.9643053]
[1641766785528,0.00113685,3195.8,3195.7,4.9643053]
[1641766787977,0.00113685,3195.8,3195.7,3.4]
[1641766790282,0.00113685,3195.8,3195.7,3.321781]
[1641766791136,2.66500345,3195.8,3195.7,3.321781]
[1641766792433,2.66500345,3195.8,3195.7,3.1]
[1641766793831,2.66500345,3195.8,3195.7,0.25835737]
[1641766794735,1.38087561,3195.2,3194.8,2.56466]
[1641766794978,1.38087561,3195.2,3194.9,0.7822694]
[1641766795183,1.38087561,3195.2,3195.1,1.56454]
[1641766795381,1.38087561,3195.2,3195.1,1.86454]
[1641766795576,1.38087561,3195.2,3195.1,1.86738211]
[1641766795978,0.78233,3195.3,3195.2,0.78231]
[1641766796380,0.78233,3195.3,3195.2,0.78458369]
[1641766796879,1.56465,3195.6,3195.2,0.78458369]
[1641766797081,0.78227,3195.4,3195.2,0.78458369]
[1641766797281,0.78227,3195.4,3195.3,0.00170527]
[1641766799428,1.35470707,3195.6,3195.3,0.00170527]
[1641766799626,1.35470707,3195.6,3195.4,0.78225]
[1641766799827,1.35470707,3195.6,3195.4,1.08225]
[1641766800028,2.66401412,3195.5,3195.4,1.08225]
[1641766800426,2.66401412,3195.5,3195.4,1.08338684]
[1641766801330,0.78224,3195.6,3195.4,1.08338684]
[1641766801929,2.66401412,3195.5,3195.4,1.08338684]
[1641766802229,4.15075009,3195.5,3195.4,1.08338684]
[1641766805186,4.15075009,3195.5,3195.4,1.07625652]
[1641766805386,4.15075009,3195.5,3195.4,4.17625652]
[1641766806229,2.66401412,3195.5,3195.4,4.17625652]
[1641766807528,2.66401412,3195.5,3195.4,3.3833209]
[1641766808127,2.66401412,3195.5,3195.4,4.3833209]
[1641766808333,2.66401412,3195.5,3195.4,3.3833209]
[1641766808529,2.66401412,3195.5,3195.4,4.1656109]
[1641766809137,2.66401412,3195.5,3195.4,5.1656109]
[1641766809331,2.79820638,3195.5,3195.4,5.1656109]
[1641766810185,2.79820638,3195.5,3195.4,4.1656109]
[1641766810579,0.13419226,3195.5,3195.4,4.1656109]
[1641766812981,0.13419226,3195.5,3195.4,5.1656109]
[1641766814629,0.13419226,3195.5,3195.4,4.1656109]
[1641766814831,0.13419226,3195.5,3195.4,5.1656109]
[1641766815239,0.13419226,3195.5,3195.4,4.1656109]
[1641766828487,2.79809691,3195.5,3195.4,4.1656109]
[1641766830331,2.79809691,3195.5,3195.4,4.16447406]
[1641766869541,2.79809691,3195.5,3195.4,5.24474828]
[1641766869744,1.1957041,3196.1,3195.4,5.24474828]
[1641766869988,1.1957041,3196.3,3195.8,0.78199]
[1641766870187,0.0022737,3196.0,3195.8,0.78199]
[1641766870387,0.0022737,3196.0,3195.8,1.08199]
[1641766870588,0.00170528,3195.9,3195.8,1.34769]
[1641766871589,0.00170528,3195.9,3195.8,2.34769]
[1641766871785,0.00170528,3195.9,3195.8,3.1296754]
[1641766872387,0.00170528,3195.9,3195.8,5.23953608]
[1641766872688,1.1957041,3196.6,3196.2,0.78188]
[1641766872889,1.1957041,3196.6,3196.2,1.5637483]
[1641766873089,0.00341054,3196.5,3196.2,1.0818683]
[1641766873393,0.00284211,3196.4,3196.2,1.0818683]
[1641766873648,0.00284211,3196.4,3196.3,1.56373]
[1641766873839,3.99634368,3196.8,3196.3,1.56373]
[1641766874139,0.00454738,3196.7,3196.5,0.3]
[1641766874340,0.00454738,3196.7,3196.4,1.56349]
[1641766874539,0.00397896,3196.6,3196.5,1.95738809]
[1641766874742,0.00397896,3196.6,3196.5,3.52089809]
[1641766875340,0.00397896,3196.6,3196.5,4.52089809]
[1641766875943,0.00397896,3196.6,3196.5,3.52089809]
[1641766876142,5.9955041,3197.6,3196.5,5.76178432]
[1641766876340,5.9955041,3197.6,3196.5,8.86178432]
[1641766876540,0.00341054,3197.2,3196.5,8.86178432]
[1641766876940,0.00284212,3197.1,3196.5,8.86178432]
[1641766877384,4.7998,3197.6,3196.5,8.86178432]
[1641766877385,0.00227369,3197.0,3196.5,8.86178432]
[1641766877684,0.78171,3197.5,3196.5,8.86178432]
[1641766877685,0.00170527,3196.9,3196.5,8.86178432]
[1641766878086,0.00113685,3196.8,3196.5,7.62089809]
[1641766878488,2.7402,3197.6,3196.5,7.62089809]
[1641766878489,0.00511581,3197.5,3196.5,7.62089809]
[1641766878886,0.00454739,3197.4,3196.5,7.62089809]
[1641766879286,0.00397896,3197.3,3196.9,0.7816968]
[1641766879486,0.78573896,3197.3,3196.8,1.56345]
[1641766879685,0.78176,3197.3,3196.9,0.3]
[1641766879886,0.00511581,3197.5,3197.0,1.83571091]